Cogmind - Beta 13 @@@ ROGUE MODE // 2024.04.09 @ 10:45:15 Player: Aklangi Result: Destroyed by B-75 Beast with Heavy Plasma Cannon Performance ------------- Evolutions (5) 2500 Regions Visited (15) 3000 Robots Destroyed (99) 495 Value Destroyed (2805) 2805 Prototype IDs (25) 500 Alien Tech Used (0) 0 Bonus (624) 624 TOTAL SCORE: 9924 Bonus ------- High Alert Combat Kills 46 Follower Combat Kills 278 Met Data Miner 300 Cogmind --------- Core Integrity 0/1000 Matter 136/300 Energy 45/100 System Corruption 20% Temperature Cool (12) Movement Flying (40) Location -5/Extension Parts ------- > --- POWER (2) -------- (None) > --- PROPULSION (5) --- Biomechanical Wings > --- UTILITY (7) ------ Advanced Weight Redist. System System Shield > --- WEAPON (3) ------- (None) > --- INVENTORY (5) ---- Fusion Compressor Improved Transmission Jammer Gatling Laser Molecular Deconstructor Peak State ------------ > --- POWER ------------ Light Ion Engine Micro Fission Core > --- PROPULSION ------- VTOL Module VTOL Module Biomechanical Wings Field Propulsion Drive > --- UTILITY ---------- Small Storage Unit Energy Well Advanced Weight Redist. System Improved Thermal Defense Suite Hacking Suite System Shield > --- WEAPON ----------- Backup Laser III Lance > --- INVENTORY -------- Fusion Compressor Improved Transmission Jammer Gatling Laser Molecular Deconstructor [Rating: 57] Favorites ----------- Power Improved Ion Engine Engine Improved Ion Engine Power Core Micro Nuclear Core Propulsion Light Treads Treads Light Treads Leg VSS Leg Hover Unit Gravmag Array Flight Unit VTOL Module Utility Huge Storage Unit Device Weapon Cycler Storage Huge Storage Unit Processor Improved Targeting Computer Hackware Hacking Suite Protection Improved Light Armor Plating Weapon Heavy Assault Rifle Energy Gun Small Laser Energy Cannon Advanced Beam Cannon Ballistic Gun Heavy Assault Rifle Ballistic Cannon Gauss Cannon Launcher Advanced EMP Blaster Special Weapon Molecular Deconstructor Slashing Weapon Chainsword Piercing Weapon Lance Build | -11 -10 -9 -9 -8 -7 -7 -7 -6 -6 -6 -6 -5 -5 -5 -5 ------- Run | Yrd Mat Mat Min Mat Fac Low Dat Pro Fac Low Low Fac Was Fac Ext Slots Evolved 10 | . . 2 . 2 2 . . . 2 . . 2 . . . Power 1 | . . . . . . . . . 1 . . . . . . Propulsion 3 | . . 2 . 1 . . . . . . . . . . . Utility 5 | . . . . 1 1 . . . 1 . . 2 . . . Weapon 1 | . . . . . 1 . . . . . . . . . . Parts Attached 146 | 6 8 14 . 14 34 1 . 9 11 2 . 6 2 35 4 Power 19 | 1 1 2 . 2 3 . . 1 2 . . 1 1 3 2 Engine 13 | 1 1 2 . 1 1 . . 1 2 . . 1 1 2 . Core 6 | . . . . 1 2 . . . . . . . . 1 2 Reactor . | . . . . . . . . . . . . . . . . Propulsion 51 | 2 2 4 . 4 12 1 . 4 . . . 1 . 20 1 Treads 19 | 2 2 4 . 4 7 . . . . . . . . . . Leg 2 | . . . . . . . . 1 . . . . . 1 . Wheel . | . . . . . . . . . . . . . . . . Hover 9 | . . . . . . . . . . . . 1 . 8 . Flight 21 | . . . . . 5 1 . 3 . . . . . 11 1 Utility 38 | 1 2 . . 3 10 . . 2 7 . . 4 . 9 . Device 12 | . . . . . 3 . . 1 4 . . 1 . 3 . Storage 8 | 1 1 . . . 2 . . . 1 . . . . 3 . Processor 5 | . 1 . . . . . . 1 . . . 3 . . . Hackware 6 | . . . . . 1 . . . 2 . . . . 3 . Protection 7 | . . . . 3 4 . . . . . . . . . . Artifact . | . . . . . . . . . . . . . . . . Weapon 38 | 2 3 8 . 5 9 . . 2 2 2 . . 1 3 1 Energy Gun 9 | 1 2 . . 1 1 . . 1 1 . . . . 2 . Energy Cannon 6 | . . 2 . 1 1 . . 1 . . . . 1 . . Ballistic Gun 12 | 1 1 4 . 3 3 . . . . . . . . . . Ballistic Cannon 2 | . . . . . 2 . . . . . . . . . . Launcher 3 | . . 2 . . 1 . . . . . . . . . . Special Weapon 2 | . . . . . . . . . . 1 . . . . 1 Impact Weapon . | . . . . . . . . . . . . . . . . Slashing Weapon 1 | . . . . . . . . . . 1 . . . . . Piercing Weapon 3 | . . . . . 1 . . . 1 . . . . 1 . Special Melee Weapon . | . . . . . . . . . . . . . . . . Unidentified Prototypes 8 | . . 2 . . . . . 1 . 1 . 1 . 3 . Parts Lost 50 | . . . . 1 11 1 . 12 . . . 6 2 8 9 Power 8 | . . . . . 2 . . 1 . . . 2 . 2 1 Propulsion 24 | . . . . 1 4 1 . 7 . . . 3 . 4 4 Utility 13 | . . . . . 3 . . 3 . . . . 2 2 3 Weapon 5 | . . . . . 2 . . 1 . . . 1 . . 1 Highest Loss Streak 9 | . . . . 1 4 1 . 8 . . . 6 2 3 9 To Critical Strikes . | . . . . . . . . . . . . . . . . Average Slot Usage (%) 84 | . 98 100 100 100 97 92 92 46 51 60 . 62 33 52 55 Engine 5 | . 14 11 11 3 . 7 7 4 6 6 . 4 3 3 2 Core 2 | . . . . 5 6 . . . . . . . . . 2 Treads 24 | . 28 44 44 45 34 . . . . . . . . . . Flight 5 | . . . . . 2 38 38 19 13 13 . 9 . 11 13 Device 4 | . . . . . 8 7 7 1 9 13 . 11 8 4 11 Storage 8 | . 14 11 11 9 7 7 7 7 5 6 . 5 . 6 7 Processor 6 | . 12 11 11 9 4 . . . . . . 9 9 2 . Hackware 3 | . . . . . . 7 7 1 9 13 . 11 8 9 9 Protection 2 | . . . . 9 6 7 7 1 . . . . . . . Energy Gun 3 | . 14 7 . . 2 . . . 2 . . . . 2 2 Energy Cannon 2 | . . 3 11 8 4 . . . . . . . . . . Ballistic Gun 6 | . 14 10 11 9 7 7 7 1 . . . . . . . Ballistic Cannon 1 | . . . . . 6 . . . . . . . . . . Piercing Weapon 1 | . . . . . . 7 7 5 3 . . . . 2 2 Naked Turns . | . . . . . . . . . . . . . . . . Heaviest Build 110 | 13 90 94 94 97 110 21 21 21 15 14 14 14 10 29 29 Greatest Support 103 | 40 40 83 83 103 103 26 26 26 15 15 15 20 12 49 30 Greatest Overweight (x) 4 | . 2 1 1 1 2 . . 4 . . . 1 . 1 1 Average Overweight (x) . | . . 1 1 . . . . . . . . . . . . Largest Inventory Capacity 25 | 8 25 25 25 25 25 8 8 8 8 8 8 8 5 8 8 Average Capacity 17 | 7 18 25 25 25 24 8 8 8 7 8 8 8 5 7 7 Most Carried 25 | 1 13 22 22 25 23 6 5 8 7 8 7 6 5 8 5 Average Carried 12 | . 7 13 22 21 18 5 5 5 5 5 7 5 4 5 4 Final Capacity 25 | 8 25 25 25 25 8 8 8 8 8 8 8 8 5 8 5 Final Carried 22 | 1 13 22 22 21 6 5 5 6 7 7 7 5 4 4 5 Class Distribution -------------------- 50% | Mutant 14% | Gunner 11% | Hacker-Mutant 8% | Hacker-Sprinter 5% | Scavenger-Tank 5% | Scavenger-Sprinter Dominant Class ---------------- Mutant | -10/Materials Mutant | -9/Materials Mutant | -9/Mines Mutant | -8/Materials Gunner | -7/Factory Scavenger-Sprinter | -7/Lower Caves Scavenger-Sprinter | -7/Data Miner Mutant | -6/Proximity Caves Hacker-Sprinter | -6/Factory Hacker-Sprinter | -6/Lower Caves Hacker-Sprinter | -6/Lower Caves Hacker-Mutant | -5/Factory Hacker-Mutant | -5/Waste Hacker-Mutant | -5/Factory Hacker-Mutant | -5/Extension Resources | -11 -10 -9 -9 -8 -7 -7 -7 -6 -6 -6 -6 -5 -5 -5 -5 ----------- Run | Yrd Mat Mat Min Mat Fac Low Dat Pro Fac Low Low Fac Was Fac Ext Matter Collected 2308 | 210 194 260 41 127 616 24 . 343 42 26 . 122 . 225 78 Remotely . | . . . . . . . . . . . . . . . . Salvage Created 3430 | 29 217 485 195 398 1016 . . 361 42 . . 361 . 258 68 Parts 201 | 2 16 32 10 20 65 . . 13 4 . . 16 . 18 5 Haulers Intercepted 9 | . 1 2 . . 4 . . . . . . 1 . 1 . Recyclers Shooed 1 | . . . . . 1 . . . . . . . . . . Parts Field Recycled . | . . . . . . . . . . . . . . . . Retrieved Matter . | . . . . . . . . . . . . . . . . Parts Self-Destructed 10 | . . . . . . . . 10 . . . . . . . Prevented . | . . . . . . . . . . . . . . . . Kills | -11 -10 -9 -9 -8 -7 -7 -7 -6 -6 -6 -6 -5 -5 -5 -5 ------- Run | Yrd Mat Mat Min Mat Fac Low Dat Pro Fac Low Low Fac Was Fac Ext Combat Hostiles Destroyed 60 | . 6 10 4 7 17 . . 8 . . . 2 . 5 1 Melee 16 | . . . . . 1 . . 7 . . . 2 . 5 1 Guns 18 | . 6 4 2 1 4 . . 1 . . . . . . . Cannons 21 | . . 3 2 6 10 . . . . . . . . . . AOE 4 | . . 3 . . 1 . . . . . . . . . . Classes Destroyed 14 | 1 4 3 . 1 4 . . 1 . . . . . . . Worker 8 | . . . . . 4 . . . 1 . . . . 3 . Builder 10 | . . . . . 5 . . . . . . 4 . . 1 Tunneler 1 | 1 . . . . . . . . . . . . . . . Hauler 9 | . 1 2 . . 4 . . . . . . 1 . 1 . Recycler 2 | . . 1 . . 1 . . . . . . . . . . Minesweeper 1 | . . . . . . . . 1 . . . . . . . Mechanic 1 | . . . . 1 . . . . . . . . . . . Operator 3 | . . 1 . . 1 . . . . . . . . 1 . Watcher 4 | . 1 1 . . . . . . 1 . . 1 . . . Swarmer 18 | . 3 3 . . 3 . . 4 . . . . . 5 . Grunt 27 | . 3 6 2 3 7 . . 3 . . . 2 . . 1 Sentry 10 | . . 1 2 4 2 . . 1 . . . . . . . Hunter 2 | . . . . . 2 . . . . . . . . . . Programmer 3 | . . . . . 3 . . . . . . . . . . Best Kill Streak 8 | 1 3 3 2 4 8 . . 4 2 . . 2 . 5 2 Combat Bots Only 5 | . 3 3 2 4 5 . . 4 . . . 2 . 5 1 Max Kills in Single Turn 3 | 1 2 3 1 1 2 . . 1 1 . . 1 . 1 1 Gunslinging . | . . . . . . . . . . . . . . . . Exploded 2 | . . 2 . . 1 . . . . . . . . . . Melee 1 | . . . . . 1 . . 1 . . . 1 . 1 1 Uniques/NPCs Destroyed . | . . . . . . . . . . . . . . . . Combat | -11 -10 -9 -9 -8 -7 -7 -7 -6 -6 -6 -6 -5 -5 -5 -5 -------- Run | Yrd Mat Mat Min Mat Fac Low Dat Pro Fac Low Low Fac Was Fac Ext Hostile Shots Fired 555 | . 24 22 8 33 185 11 . 105 . . 7 28 2 56 74 Missed 169 | . 5 4 2 10 48 5 . 30 . . 3 5 . 22 35 Damage Taken 6463 | . 196 182 108 548 2192 114 . 894 . . 87 438 114 772 818 Core 1664 | . . . 17 43 184 18 . 332 . . 49 173 114 253 481 Absorbed by Shields 40 | . . . . . . . . . . . . . . . 40 Regen/Repaired (Parts) 102 | . . . . 102 . . . . . . . . . . . Core Remaining (%) 84 | 100 100 . 95 92 . . . 23 . . 94 . . . . Volleys Fired 171 | 6 29 23 10 24 56 . . 2 5 . . . . 15 1 Largest 3 | 2 2 2 2 2 3 . . 1 1 . . . . 1 1 Hottest 160 | 60 76 98 91 91 160 . . 60 80 . . . . 80 . Shots Fired 359 | 12 57 46 20 48 151 . . 2 5 . . . . 17 1 Gun 235 | 12 57 33 10 25 74 . . 2 5 . . . . 17 . Cannon 119 | . . 10 10 23 76 . . . . . . . . . . Launcher 4 | . . 3 . . 1 . . . . . . . . . . Special 1 | . . . . . . . . . . . . . . . 1 Kinetic 204 | 6 29 20 10 24 115 . . . . . . . . . . Thermal 118 | 6 28 23 10 24 5 . . . 5 . . . . 17 . Explosive 3 | . . 3 . . . . . . . . . . . . . Electromagnetic 33 | . . . . . 31 . . 2 . . . . . . . Robot Hit Streak 12 | 6 7 10 9 10 12 . . 1 2 . . . . 7 . Robot Miss Streak 4 | 3 4 2 2 4 4 . . 1 3 . . . . 3 . Penetration Max 1 | . . . . . 1 . . . . . . . . . . Secondary Targets 2 | . 2 . . . . . . . . . . . . . . Max Gunslinging Chain 1 | . 1 . . . . . . . . . . . . . . Shots Hit Robots 283 | 7 29 28 15 31 94 . . 19 5 . 1 27 . 22 5 Core Hits 138 | 1 13 20 6 16 43 . . 11 4 . 1 7 . 14 2 Critical Kills . | . . . . . . . . . . . . . . . . Critical Parts Destroyed . | . . . . . . . . . . . . . . . . Critical Strikes 14 | . 1 . . . 6 . . 2 . . . 4 . 1 . Burn 1 | . 1 . . . . . . . . . . . . . . Blast 5 | . . . . . 5 . . . . . . . . . . Corrupt 1 | . . . . . 1 . . . . . . . . . . Sever 4 | . . . . . . . . . . . . 4 . . . Impale 3 | . . . . . . . . 2 . . . . . 1 . Melee Attacks 112 | . . . . . 1 . . 25 . 1 1 30 . 49 5 Impact . | . . . . . . . . . . . . . . . . Slashing 32 | . . . . . . . . . . 1 1 30 . . . Piercing 80 | . . . . . 1 . . 25 . . . . . 49 5 Sneak Attacks 14 | . . . . . . . . 1 . . 1 7 . 3 2 Combat Hostiles 1 | . . . . . . . . . . . . 1 . . . Follow-up Attacks . | . . . . . . . . . . . . . . . . Damage Inflicted 7939 | 92 374 806 278 592 2734 . . 580 51 . 55 1296 . 785 296 Guns 2336 | 92 374 312 113 274 860 . . 20 51 . . . . 240 . Cannons 1993 | . . 143 165 310 1375 . . . . . . . . . . Explosions 751 | . . 351 . . 400 . . . . . . . . . . Melee 2750 | . . . . . . . . 560 . . 55 1294 . 545 296 Ramming 109 | . . . . 8 99 . . . . . . 2 . . . Kinetic 2424 | 39 162 150 113 259 1701 . . . . . . . . . . Thermal 1578 | 53 212 305 165 325 227 . . . 51 . . . . 240 . Explosive 513 | . . 351 . . 162 . . . . . . . . . . Electromagnetic 565 | . . . . . 545 . . 20 . . . . . . . Impact . | . . . . . . . . . . . . . . . . Slashing 1349 | . . . . . . . . . . . 55 1294 . . . Piercing 1401 | . . . . . . . . 560 . . . . . 545 296 Highest Corruption 20 | . . . . . 1 1 1 1 . . . 2 11 16 20 Average Corruption 6 | . . . . . 1 1 1 1 . . . 1 9 13 17 Corruption Purged . | . . . . . . . . . . . . . . . . Corruption Blocked . | . . . . . . . . . . . . . . . . Effects 63 | . . . . . 5 2 . 4 . . . 1 6 34 11 Message Errors 13 | . . . . . 2 1 . 2 . . . 1 . 4 3 Matter Fused 9 | . . . . . . 1 . 1 . . . . . 7 . Heat Flow Errors 10 | . . . . . . . . 1 . . . . . 7 2 Energy Discharges 8 | . . . . . 1 . . . . . . . 2 5 . Parts Rejected 2 | . . . . . . . . . . . . . . 2 . Data Loss (minor) 8 | . . . . . 1 . . . . . . . 2 3 2 Data Loss (major) 5 | . . . . . 1 . . . . . . . . 3 1 Misfires 2 | . . . . . . . . . . . . . . 2 . Alerts 1 | . . . . . . . . . . . . . . 1 . Misdirections 5 | . . . . . . . . . . . . . 2 . 3 Overload Shots . | . . . . . . . . . . . . . . . . Overflow Damage 567 | . . 8 3 . 176 . . . . . . 269 . 59 52 Projectiles 88 | . . 8 3 . 77 . . . . . . . . . . Explosions 99 | . . . . . 99 . . . . . . . . . . Melee 380 | . . . . . . . . . . . . 269 . 59 52 Knockbacks 10 | . . . . . 10 . . . . . . . . . . Impact . | . . . . . . . . . . . . . . . . Kinetic 10 | . . . . . 10 . . . . . . . . . . Secondary . | . . . . . . . . . . . . . . . . Self-Inflicted Damage 394 | . . . . . 393 . . . . . . 1 . . . Shots 7 | . . . . . 7 . . . . . . . . . . Rammed 11 | . . . . . 10 . . . . . . 1 . . . Targets Rammed 15 | . . . . 1 13 . . . . . . 1 . . . Kicked . | . . . . . . . . . . . . . . . . Crushed 4 | . . . . 1 3 . . . . . . . . . . Highest Temperature 344 | . 129 102 198 255 344 91 16 168 96 . . . . 204 136 Average Temperature 66 | . 52 26 75 96 101 28 8 33 44 . . . . 61 74 Received Heat Transfer 2004 | . 90 48 63 189 699 36 . 261 . . 27 243 . 21 327 Siege Activations . | . . . . . . . . . . . . . . . . Robots Corrupted 1 | . . . . . 1 . . . . . . . . . . Combat Hostiles 1 | . . . . . 1 . . . . . . . . . . Parts Fried 3 | . . . . . 3 . . . . . . . . . . Impact Corruptions . | . . . . . . . . . . . . . . . . Robots Melted . | . . . . . . . . . . . . . . . . Combat Hostiles . | . . . . . . . . . . . . . . . . Parts Melted 4 | . . . 2 1 . . . . . . . . . 1 . Heat Transferred 3162 | 125 584 666 296 592 224 . . . 125 . . . . 550 . Parts Sabotaged . | . . . . . . . . . . . . . . . . Parts Stolen . | . . . . . . . . . . . . . . . . Parts Stripped . | . . . . . . . . . . . . . . . . Power Chain Reactions 1 | . . . . . 1 . . . . . . . . . . Alert | -11 -10 -9 -9 -8 -7 -7 -7 -6 -6 -6 -6 -5 -5 -5 -5 ------- Run | Yrd Mat Mat Min Mat Fac Low Dat Pro Fac Low Low Fac Was Fac Ext Peak Influence 493 | 5 107 273 201 210 493 . . . 166 . . 174 50 302 420 Initial 109 | . 3 15 106 . 28 . . . 109 . . 51 50 7 95 Average 115 | 2 43 116 155 93 160 . . . 142 . . 128 36 102 214 Maximum Alert Level 2 | . . 1 1 1 2 . . . . . . . . 1 2 Low Security (%) 80 | 100 100 90 58 86 61 . . . 100 . . 100 100 84 62 Level 1 16 | . . 9 41 13 28 . . . . . . . . 15 27 Level 2 3 | . . . . . 10 . . . . . . . . . 9 Level 3 . | . . . . . . . . . . . . . . . . Level 4 . | . . . . . . . . . . . . . . . . Level 5 . | . . . . . . . . . . . . . . . . High Security . | . . . . . . . . . . . . . . . . Max Security . | . . . . . . . . . . . . . . . . Squads Dispatched 21 | . 2 2 . 2 5 . . . . . . 4 . 5 1 Investigation 6 | . . 1 . 1 1 . . . . . . 2 . 1 . Extermination 4 | . . . . . 2 . . . . . . 1 . 1 . Reinforcement 11 | . 2 1 . 1 2 . . . . . . 1 . 3 1 Assault . | . . . . . . . . . . . . . . . . Garrison . | . . . . . . . . . . . . . . . . Intercept . | . . . . . . . . . . . . . . . . Searches Triggered . | . . . . . . . . . . . . . . . . Data Miner Redirects 3 | . . . . . . . . . . . . 2 . 1 . Construction Impeded 1 | . . . . . . . . . . . . . . 1 . Haulers Reinforced 1 | . . . . . 1 . . . . . . . . . . Active Scanning Responses . | . . . . . . . . . . . . . . . . Cargo Convoy Interrupts . | . . . . . . . . . . . . . . . . Stealth | -11 -10 -9 -9 -8 -7 -7 -7 -6 -6 -6 -6 -5 -5 -5 -5 --------- Run | Yrd Mat Mat Min Mat Fac Low Dat Pro Fac Low Low Fac Was Fac Ext Distress Signals 14 | . 1 1 . 3 2 . . . . . . 1 . 1 5 Communications Jammed . | . . . . . . . . . . . . . . . . Distress Signals . | . . . . . . . . . . . . . . . . Times Spotted 169 | . 15 19 3 14 26 9 . 17 2 . 4 10 6 25 19 Peak Tracking Total 12 | . 4 4 2 4 6 5 . 5 1 . 4 7 6 8 12 Tactical Retreats 18 | . . . . 1 . 4 . 3 . . . . . 7 3 Traps | -11 -10 -9 -9 -8 -7 -7 -7 -6 -6 -6 -6 -5 -5 -5 -5 ------- Run | Yrd Mat Mat Min Mat Fac Low Dat Pro Fac Low Low Fac Was Fac Ext Traps Triggered 5 | . . . . . 1 . . . . . . 1 . 1 2 Indirectly . | . . . . . . . . . . . . . . . . Trap Hack Attempts . | . . . . . . . . . . . . . . . . Triggered . | . . . . . . . . . . . . . . . . Disarmed 5 | . 5 . . . . . . . . . . . . . . Reprogrammed . | . . . . . . . . . . . . . . . . Reused . | . . . . . . . . . . . . . . . . Traps Extracted . | . . . . . . . . . . . . . . . . Installed . | . . . . . . . . . . . . . . . . Triggered . | . . . . . . . . . . . . . . . . Machines | -11 -10 -9 -9 -8 -7 -7 -7 -6 -6 -6 -6 -5 -5 -5 -5 ---------- Run | Yrd Mat Mat Min Mat Fac Low Dat Pro Fac Low Low Fac Was Fac Ext Machines Disabled 21 | . . 2 . . 16 . . . . 1 . . . . 2 Max in Single Turn 6 | . . 1 . . 6 . . . . 1 . . . . . Machines Repaired . | . . . . . . . . . . . . . . . . Machines Dismantled . | . . . . . . . . . . . . . . . . Machines Sabotaged . | . . . . . . . . . . . . . . . . Overloaded Fab Kills . | . . . . . . . . . . . . . . . . Hacking | -11 -10 -9 -9 -8 -7 -7 -7 -6 -6 -6 -6 -5 -5 -5 -5 --------- Run | Yrd Mat Mat Min Mat Fac Low Dat Pro Fac Low Low Fac Was Fac Ext Machines Accessed 44 | . 6 4 2 4 7 . 4 1 3 . . 2 . 8 3 Terminals 27 | . 6 2 2 2 5 . . 1 2 . . 1 . 4 2 Fabricators 5 | . . . . . 1 . . . 1 . . 1 . 2 . Repair Stations 2 | . . . . 1 . . . . . . . . . 1 . Recycling Units 4 | . . 2 . . . . . . . . . . . 1 1 Scanalyzers 1 | . . . . 1 . . . . . . . . . . . Garrison Access 1 | . . . . . 1 . . . . . . . . . . Total Hacks 137 | . 22 11 5 16 14 . 32 1 7 . . 7 . 16 6 Successful 88 | . 10 6 3 10 7 . 32 1 4 . . 4 . 9 2 Failed 49 | . 12 5 2 6 7 . . . 3 . . 3 . 7 4 Catastrophic 9 | . 2 . . 3 3 . . . . . . . . 1 . Database Lockouts . | . . . . . . . . . . . . . . . . Manual 22 | . 6 . 2 3 2 . 1 2 1 1 . . . 2 2 Terminals 76 | . 22 8 5 10 9 . . 1 5 . . 4 . 8 4 Fabricators 14 | . . . . . 4 . . . 2 . . 3 . 5 . Repair Stations 4 | . . . . 2 . . . . . . . . . 2 . Recycling Units 6 | . . 3 . . . . . . . . . . . 1 2 Scanalyzers 4 | . . . . 4 . . . . . . . . . . . Garrison Access 1 | . . . . . 1 . . . . . . . . . . Terminal Hacks 63 | . 10 3 3 4 3 . 32 1 2 . . 1 . 3 1 Record 14 | . . . 1 . . . 11 1 1 . . . . . . Part Schematic 11 | . . . . . . . 11 . . . . . . . . Robot Schematic 7 | . . . . . . . 7 . . . . . . . . Prototype ID Bank 9 | . 3 2 . 1 . . 3 . . . . . . . . Open DSF 2 | . . . . . 1 . . . . . . . . 1 . Branch Access Points 2 | . . . . . 1 . . . . . . . . 1 . Emergency Access Points 2 | . 1 . . . . . . . . . . 1 . . . Alert Level 3 | . 1 . . . 1 . . . 1 . . . . . . Locate Traps 5 | . 1 1 1 1 . . . . . . . . . 1 . Disarm Traps 2 | . 2 . . . . . . . . . . . . . . Dispatch Records 1 | . . . . 1 . . . . . . . . . . . Registered Components 1 | . 1 . . . . . . . . . . . . . . Zone Layout 4 | . 1 . 1 1 . . . . . . . . . . 1 Fabricator Hacks 12 | . . . . . 4 . . . 1 . . 3 . 4 . Network Status 5 | . . . . . 2 . . . . . . 1 . 2 . Load Schematic 3 | . . . . . 1 . . . . . . 1 . 1 . Build 4 | . . . . . 1 . . . 1 . . 1 . 1 . Repair Station Hacks 3 | . . . . 2 . . . . . . . . . 1 . Scan Component 1 | . . . . 1 . . . . . . . . . . . Repair 1 | . . . . 1 . . . . . . . . . . . Refit 1 | . . . . . . . . . . . . . . 1 . Recycling Unit Hacks 5 | . . 3 . . . . . . . . . . . 1 1 Report Inventory 2 | . . 2 . . . . . . . . . . . . . Retrieve Components 3 | . . 1 . . . . . . . . . . . 1 1 Scanalyzer 4 | . . . . 4 . . . . . . . . . . . Insert Component 2 | . . . . 2 . . . . . . . . . . . Analyze 2 | . . . . 2 . . . . . . . . . . . Garrison Access Hacks . | . . . . . . . . . . . . . . . . Unauthorized Hacks 1 | . . . . . . . . . 1 . . . . . . Terminals 1 | . . . . . . . . . 1 . . . . . . Assimilate 1 | . . . . . . . . . 1 . . . . . . Fabricators . | . . . . . . . . . . . . . . . . Repair Stations . | . . . . . . . . . . . . . . . . Recycling Units . | . . . . . . . . . . . . . . . . Scanalyzers . | . . . . . . . . . . . . . . . . Garrison Access . | . . . . . . . . . . . . . . . . Data Cores Recovered . | . . . . . . . . . . . . . . . . Used . | . . . . . . . . . . . . . . . . Hacking Detections 33 | . 5 2 2 2 7 . . 1 3 . . 2 . 7 2 Full Trace Events 7 | . 1 1 . 1 1 . . . . . . 2 . 1 . Feedback Events 1 | . . . . . . . . . . . . 1 . . . Corruption 1 | . . . . . . . . . . . . 1 . . . Feedback Blocked . | . . . . . . . . . . . . . . . . Robot Schematics Acquired 7 | . . . . . . . 7 . . . . . . . . Robots Built 1 | . . . . . . . . . . . . . . 1 . Authchips . | . . . . . . . . . . . . . . . . Time 378 | . . . . . . . . . 40 . . 169 . 169 . Total Robot Build Rating 6 | . . . . . . . . . . . . . . 6 . Part Schematics Acquired 13 | . . . . 2 . . 11 . . . . . . . . Parts Built 1 | . . . . . 1 . . . . . . . . . . Authchips . | . . . . . . . . . . . . . . . . Time 73 | . . . . . 73 . . . . . . . . . . Total Part Build Rating 3 | . . . . . 3 . . . . . . . . . . Parts Repaired 1 | . . . . 1 . . . . . . . . . . . Time 51 | . . . . 51 . . . . . . . . . . . Parts Recycled . | . . . . . . . . . . . . . . . . Recycled Matter . | . . . . . . . . . . . . . . . . Retrieved Matter . | . . . . . . . . . . . . . . . . Retrieved Components 16 | . . 10 . . . . . . . . . . . 3 3 Parts Scanalyzed 2 | . . . . 2 . . . . . . . . . . . Part Schematics Acquired 2 | . . . . 2 . . . . . . . . . . . Parts Damaged . | . . . . . . . . . . . . . . . . Bothacking | -11 -10 -9 -9 -8 -7 -7 -7 -6 -6 -6 -6 -5 -5 -5 -5 ------------ Run | Yrd Mat Mat Min Mat Fac Low Dat Pro Fac Low Low Fac Was Fac Ext Used RIF Installer . | . . . . . . . . . . . . . . . . Robots Hacked . | . . . . . . . . . . . . . . . . Non-combat . | . . . . . . . . . . . . . . . . Combat . | . . . . . . . . . . . . . . . . Robot Hacks Applied . | . . . . . . . . . . . . . . . . Relay Couplers Released . | . . . . . . . . . . . . . . . . Fabnet Peak Effective % . | . . . . . . . . . . . . . . . . Robots Rewired . | . . . . . . . . . . . . . . . . Allies Hacked . | . . . . . . . . . . . . . . . . Hacks Repelled . | . . . . . . . . . . . . . . . . Allies | -11 -10 -9 -9 -8 -7 -7 -7 -6 -6 -6 -6 -5 -5 -5 -5 -------- Run | Yrd Mat Mat Min Mat Fac Low Dat Pro Fac Low Low Fac Was Fac Ext Total Allies 10 | . . . . . . . . 1 1 . . . 1 1 6 Largest Group 4 | . . . . . . . . 1 1 1 1 1 1 1 4 Highest-Rated Group 275 | . . . . . . . . 96 10 10 10 10 31 65 275 Highest-Rated Ally 159 | . . . . . . . . 96 10 10 10 10 31 65 159 Total Orders . | . . . . . . . . . . . . . . . . Ally Attacks 67 | . . . . . . . . 5 . . . . 3 . 59 Total Damage 1341 | . . . . . . . . 134 . . . . 64 . 1143 Kills 11 | . . . . . . . . 1 . . . . . . 10 Allies Corrupted 1 | . . . . . . . . . . . . . . . 1 Allies Melted . | . . . . . . . . . . . . . . . . Intel | -11 -10 -9 -9 -8 -7 -7 -7 -6 -6 -6 -6 -5 -5 -5 -5 ------- Run | Yrd Mat Mat Min Mat Fac Low Dat Pro Fac Low Low Fac Was Fac Ext Robot Analysis Total . | . . . . . . . . . . . . . . . . Derelict Logs Recovered 8 | . . . 1 . . 3 . 2 . 2 . . . . . Drone Launches . | . . . . . . . . . . . . . . . . Drone Recoveries . | . . . . . . . . . . . . . . . . Exploration | -11 -10 -9 -9 -8 -7 -7 -7 -6 -6 -6 -6 -5 -5 -5 -5 ------------- Run | Yrd Mat Mat Min Mat Fac Low Dat Pro Fac Low Low Fac Was Fac Ext Turns Passed 6736 | 117 1004 677 462 582 1659 158 23 318 181 129 6 254 98 909 159 Spaces Moved 5593 | 57 366 238 181 270 755 533 100 536 333 367 10 370 184 1061 232 Core 246 | 2 . . . . . . . 4 . . . 13 184 43 . Treads 1672 | 55 366 238 181 270 562 . . . . . . . . . . Legs 4 | . . . . . . . . 4 . . . . . . . Wheels . | . . . . . . . . . . . . . . . . Hover 215 | . . . . . . . . . . . . 145 . 70 . Flight 3456 | . . . . . 193 533 100 528 333 367 10 212 . 948 232 Fastest Speed 23 | 50 160 240 240 160 23 23 23 23 32 32 32 32 50 24 29 Average Speed 91 | 156 238 240 240 160 180 23 23 40 32 32 32 45 50 40 38 Slowest Speed 320 | 160 320 240 240 240 320 23 23 275 32 32 32 115 50 109 109 Overloaded Moves . | . . . . . . . . . . . . . . . . Propulsion Burnouts . | . . . . . . . . . . . . . . . . Robots Hopped 10 | . . . . . 1 . . . . 1 . . . . 8 Cave-ins Triggered 2 | . . . . . . . . . . . . . . 2 . Exploration Rate (%) 39 | 5 67 26 38 24 22 71 75 70 7 50 2 12 95 25 42 Regions Visited 15 Branch Regions 7 Pre-discovered Areas 4 | . . . 1 . . 1 1 . . 1 . . . . . Known Exits Taken 2 | . . . . . 1 . . . . . . . . 1 . Unknown Exits Taken 11 | 1 1 1 1 1 . 1 1 1 1 1 1 . . . . Scrap Searched 6 | . . . . . . 2 . 2 . 2 . . . . . Spaces Dug 37 | . . . . . 1 . . 3 . . . 2 . 31 . Terrain Destroyed 139 | . . 11 . . 92 . . 3 . . . 2 . 31 . Melee 37 | . . . . . 1 . . 3 . . . 2 . 31 . Projectile 12 | . . . . . 12 . . . . . . . . . . AOE 90 | . . 11 . . 79 . . . . . . . . . . Terrain Rammed . | . . . . . . . . . . . . . . . . Walls Destroyed . | . . . . . . . . . . . . . . . . Machines Disabled . | . . . . . . . . . . . . . . . . Actions | -11 -10 -9 -9 -8 -7 -7 -7 -6 -6 -6 -6 -5 -5 -5 -5 --------- Run | Yrd Mat Mat Min Mat Fac Low Dat Pro Fac Low Low Fac Was Fac Ext Total 6688 | 70 441 295 190 369 943 567 99 597 400 376 10 410 190 1446 285 Wait 512 | 1 24 4 . 51 53 34 . 13 45 3 . 1 1 267 15 Move 5557 | 56 365 237 180 269 752 532 99 535 332 364 9 370 183 1058 216 Hop 10 | . . . . . 1 . . . . 1 . . . . 8 Pick Up 53 | 1 11 13 . 3 10 . . 5 1 1 . . 1 6 1 Fast Attach 50 | 6 1 . . . 1 . . 6 6 1 . 4 1 22 2 Attach 46 | . . 2 . 4 15 1 . 2 5 . . 2 1 13 1 Detach 17 | . . . . . 1 . . 2 5 1 . . . 7 1 Swap 50 | . 7 12 . 10 18 . . 1 . 1 . . . . 1 Drop 63 | . 4 4 . 7 22 . . 6 1 3 . 2 3 7 4 Fire 171 | 6 29 23 10 24 56 . . 2 5 . . . . 15 1 Melee 112 | . . . . . 1 . . 25 . 1 1 30 . 49 5 Ram 1 | . . . . . . . . . . . . 1 . . . Kick . | . . . . . . . . . . . . . . . . Crush 14 | . . . . 1 13 . . . . . . . . . . Escape Stasis 32 | . . . . . . . . . . . . . . 2 30 Rewire . | . . . . . . . . . . . . . . . . Trap . | . . . . . . . . . . . . . . . . Miscellaneous . | . . . . . . . . . . . . . . . . Route ------- -11/Scrapyard -10/Materials (discovered 3 exits: *Mat x2 / [*Min]) -9/Materials -9/Mines -8/Materials -7/Factory (discovered 2 exits: *Low x2) -7/Lower Caves (discovered 2 exits: *Low / *Dat) -7/Data Miner -6/Proximity Caves -6/Factory (discovered 2 exits: *Low x2) -6/Lower Caves -6/Lower Caves -5/Factory (discovered 2 exits: Fac x2) -5/Waste -5/Factory (discovered 4 exits: Upp x2 / *Ext x2) -5/Extension History --------- Turn | Location | Event 27 | -11/Scrapyard | Discovered new exit (range 15) 118 | -11/Scrapyard | Entered Materials 165 | -10/Materials | Discovered new exit (range 15) 312 | -10/Materials | Build established: Mutant 460 | -10/Materials | Discovered new exit (range 9) 1068 | -10/Materials | Discovered new exit (range 14) 1122 | -10/Materials | Entered another Materials area 1122 | -9/Materials | Evolved 2 slots: Propulsion x2 1770 | -9/Materials | Discovered new exit (range 9) 1799 | -9/Materials | Entered Mines 1829 | -9/Mines | Met a Derelict bent on vengeance 1985 | -9/Mines | Joined a pair of Derelicts in attacking an 0b10 outpost 2057 | -9/Mines | Learned location of Storage (-8) 2065 | -9/Mines | Discovered new exit (range 6) 2261 | -9/Mines | Entered Materials 2261 | -8/Materials | Evolved 2 slots: Propulsion x1, Utility x1 2805 | -8/Materials | Repaired Adv. Beam Cannon 2817 | -8/Materials | Discovered new exit (range 3) 2843 | -8/Materials | Entered Factory 2843 | -7/Factory | Evolved 2 slots: Utility x1, Weapon x1 3148 | -7/Factory | Build established: Gunner 3697 | -7/Factory | Lost 4 parts (1p1n1u1w) 4097 | -7/Factory | Fabricated Hacking Suite? 4291 | -7/Factory | Build established: Scavenger-Tank 4355 | -7/Factory | Lost 4 parts (2n1u1w) 4452 | -7/Factory | Identified exit to Lower Caves 4502 | -7/Factory | Entered Lower Caves 4518 | -7/Lower Caves | Encountered a Warlord checkpoint 4519 | -7/Lower Caves | Learned Factory terminal intel 4520 | -7/Lower Caves | Spotted B-75 Beast 4608 | -7/Lower Caves | Identified exit to Lower Caves 4654 | -7/Lower Caves | Learned location of Zion (-6) 4658 | -7/Lower Caves | A Derelict revealed a hidden shortcut to meet someone special 4660 | -7/Lower Caves | Entered Data Miner 4660 | -7/Data Miner | Discovered new exit (range 6) 4665 | -7/Data Miner | Met Data Miner 4672 | -7/Data Miner | Learned location of Section 7 (-2) 4672 | -7/Data Miner | Acquired the access code to Warlord's prototype stash 4676 | -7/Data Miner | Received God Mode back door access code from Data Miner 4683 | -7/Data Miner | Entered Proximity Caves 4685 | -6/Proximity Caves | Attracted the attention of an 0b10 checkpoint 4700 | -6/Proximity Caves | Build established: Scavenger-Sprinter 4747 | -6/Proximity Caves | Escorted by Enhanced Grunt 4768 | -6/Proximity Caves | Core integrity fell below 50% 4810 | -6/Proximity Caves | Lost 8 parts (1p4n3u) 4895 | -6/Proximity Caves | Learned Factory trap positions 4897 | -6/Proximity Caves | Learned Factory security intel 4963 | -6/Proximity Caves | Lost 4 parts (3n1w) 4982 | -6/Proximity Caves | Spotted B-75 Beast 4995 | -6/Proximity Caves | Discovered new exit (range 11) 5001 | -6/Proximity Caves | Entered Factory 5001 | -6/Factory | Evolved 2 slots: Power x1, Utility x1 5002 | -6/Factory | Loaded intel: 93 trap records 5004 | -6/Factory | Loaded intel: 26 terminal locations 5044 | -6/Factory | Discovered new exit (range 8) 5119 | -6/Factory | Discovered new exit (range 6) 5182 | -6/Factory | Entered Lower Caves 5182 | -6/Lower Caves | Accompanied by 1 ally 5233 | -6/Lower Caves | Learned location of 2 exits from Factory 5286 | -6/Lower Caves | Discovered new exit (range 10) 5297 | -6/Lower Caves | Acquired the password to a Derelict Tinkerer's latest research 5300 | -6/Lower Caves | Found Prototype Special Weapon 5300 | -6/Lower Caves | Identified Molecular Deconstructor 5311 | -6/Lower Caves | Entered another Lower Caves area 5311 | -6/Lower Caves | Accompanied by 1 ally 5314 | -6/Lower Caves | Discovered new exit (range 8) 5317 | -6/Lower Caves | Entered Factory 5317 | -5/Factory | Accompanied by 1 ally 5317 | -5/Factory | Evolved 2 slots: Utility x2 5318 | -5/Factory | Identified exit to Factory 5330 | -5/Factory | Found Prototype Processor 5330 | -5/Factory | Identified Exp. Targeting Computer 5353 | -5/Factory | Build established: Hacker-Sprinter 5449 | -5/Factory | Incoming investigation squad redirected 5482 | -5/Factory | Incoming investigation squad redirected 5571 | -5/Factory | Sucked down chute 5571 | -5/Factory | Entered Waste 5572 | -5/Waste | Met a frightened Derelict 5586 | -5/Waste | EMP discharged 5586 | -5/Waste | System corruption reached 10% 5590 | -5/Waste | Lost 6 parts (2p3n1w) 5599 | -5/Waste | Spotted C-40 Crusher 5603 | -5/Waste | Spotted C-40 Crusher 5604 | -5/Waste | Spotted C-40 Crusher 5606 | -5/Waste | Spotted C-40 Crusher 5618 | -5/Waste | Spotted C-40 Crusher 5646 | -5/Waste | Crushed by Compactor (1 part destroyed, 2 dropped) 5646 | -5/Waste | Spotted C-40 Crusher 5648 | -5/Waste | Crushed by Compactor (1 part destroyed, 2 dropped) 5662 | -5/Waste | Discovered new exit (range 13) 5669 | -5/Waste | Entered Factory 5945 | -5/Factory | Build established: Mutant 6077 | -5/Factory | Spotted B-75 Beast 6097 | -5/Factory | Incoming investigation squad redirected 6134 | -5/Factory | Identified exit to Upper Caves 6134 | -5/Factory | Identified exit to Extension 6153 | -5/Factory | Crushed by falling debris 6194 | -5/Factory | Lost 3 parts (1p2u) 6251 | -5/Factory | Fabricated I-47 Archangel? 6252 | -5/Factory | Build established: Hacker-Mutant 6432 | -5/Factory | Core integrity fell below 50% 6483 | -5/Factory | Crushed by falling debris 6498 | -5/Factory | Lost 3 parts (1p2n) 6578 | -5/Factory | Entered Extension 6614 | -5/Extension | Rescued a captive Derelict 6630 | -5/Extension | Rescued a captive Derelict 6631 | -5/Extension | Rescued a captive Derelict 6667 | -5/Extension | Rescued a captive Derelict 6667 | -5/Extension | Rescued a captive Derelict 6669 | -5/Extension | Rescued A7 6702 | -5/Extension | Spotted B-75 Beast 6705 | -5/Extension | Spotted B-75 Beast 6709 | -5/Extension | Core integrity fell below 20% 6732 | -5/Extension | Extracted ID and sensor layout for unrecognized location from A7's data core 6737 | -5/Extension | Destroyed by B-75 Beast with Heavy Plasma Cannon Last Messages --------------- 06723_ Slug penetrates B-75 Beast. 06723_ A7 knocked back. 06725_ System corrupted: Component data lost. 06726_ Entropy package melds with Sealed Heavy Doors. 06727_ A7 knocked back. 06728_ Concrete disintegrates. 06728_ R-10 Processor collects Corrupted KE Penetrator. 06728_ Slug penetrates A7. 06730_ A7: "I've done al##MISSION::FAILED##" 06730_ A7 destroyed. 06731_ R-10 Processor collects Corrupted Imp. Treads. 06732_ Critical hit (Burn: +37). 06732_ Machine disabled. 06732_ Knocked back. 06732_ U-05 Engineer suffers critical hit (Burn). 06732_ Acquired data core, extracted ID and sensor data for unrecognized location. 06733_ Imp. Thermal Defense Suite destroyed. 06735_ Slug penetrates Wall. [Achievement: This Is Interesting...] Map ----- +----------------------------------------------------+ | ?????????????????????????????????????????????????? | | ?????????????????????????????????????????????????? | | ?????????????????????????????????????????????????? | | ?????????????????????????????????????????????????? | | ?????????????????????????????????????????????????? | | ?????????????????????????????????????????????????? | | #????????????????????????????????????????????????? | | #????????????????????????????????????????????????? | | ###########+##+#?????????????????????????????????? | | ! ^ #?????????????????????????????????? | | ######## #????????? ???????????????????????? | | #??????# #????????? ???????????????????????? | | #??????# #????????? ???????????????????????? | | #??????# #????????? ???????????????????????? | | #??????# #????????? ???????????????????????? | | ???????# #????????? ???????????????????????? | | ???????# ##### #????????? ???????????????????????? | | ???????# #???# #????????# #??????????????????????? | | ???????# #???# #????????# #??????????????????????? | | ???????# #???# #????????# #??????????????????????? | | ??????##+##### #????????# #??????????????????????? | | ??????# # #????????# #??????????????????????? | | ??????# # #????????# #??????????????????????? | | ??????# == + #????????# #??????????????????????? | | ??????#=*= # #????????# #??????????????????????? | | ??????# # #????????#@#??????????????????????? | | ??????# # #????????# #??????????????????????? | | ??????######## #?##?##??# #??????????????????????? | | ?????????????# ###"##"#?# #??????????????????????? | | ???????????### #"# ## ### ###????????????????????? | | ???????????# " " %! ""#????????????????????? | | ???????????# #????????????????????? | | ???????????# ##???????????????????? | | ???????????# "#???????????????????? | | ?????####### % #########????????????? | | ??? % % ???????????? | | ?? % ??????????? | | ?? % ???????????? | | ??? % ??????????? | | ??? % ???????????? | | ???######### ##########???????????? | | ???????????# % #????????????????????? | | ???????????# #????????????????????? | | ???????????# #????????????????????? | | ???????????# #????????????????????? | | ???????????###### #"""#######????????????????????? | | ????????????????###??????????????????????????????? | | ?????????????????????????????????????????????????? | | | | | +----------------------------------------------------+ Best States ------------- Heat Dissipation 61 Energy Generation 30 Energy Capacity 525 Matter Stores 300 Matter Capacity 300 Sight Range 16 Terrain Scan Density 10 Additional Mass Support 9 Armor Coverage 150 Resistance: TH 25 Weapon Cycling 15 Evasion (%) 65 Targeting Accuracy 6 Melee Accuracy 5 Recoil Reduction 5 Offensive Hacking 22 Defensive Hacking 20 Item Schematics ----------------- Hacking Suite | -8/Materials | Scanalyzed VTOL Module | -8/Materials | Scanalyzed Combat Drone Bay | -7/Data Miner | Free Lgt. Regenerative Plating | -7/Data Miner | Free Cld. Aerolev Unit | -7/Data Miner | Free Gravity Neutralizer | -7/Data Miner | Free Com. Ion Cannon | -7/Data Miner | Free Nuclear Pulse Array | -7/Data Miner | Free Point Defense System | -7/Data Miner | Free Imp. Arc Projector | -7/Data Miner | Free Imp. Reaction Control System | -7/Data Miner | Free Adv. System Shield | -7/Data Miner | Free Adv. Transmission Jammer | -7/Data Miner | Free Robot Schematics ------------------ S-27 Virus | -7/Data Miner | Free G-50 Soldier | -7/Data Miner | Free G-47 Trooper | -7/Data Miner | Free R-10 Processor | -7/Data Miner | Free X-62 Marksman | -7/Data Miner | Free A-15 Conveyor | -7/Data Miner | Free I-47 Archangel | -7/Data Miner | Free Fabricated ------------ Hacking Suite | x1 | -7/Factory I-47 Archangel | x1 | -5/Factory Alien Tech Used ----------------- None Achievements -------------- The Oracle This Is Interesting... Challenges ------------ None Game ------ Seed NodeSlugRegenerator Manual? 0 Play Time 01:20:55 Cumulative 17.7 hours Start 2024.04.09 @ 09:19:41 End 2024.04.09 @ 10:45:15 Sessions 1 Manual Loads 0 Difficulty Rogue Special Mode None Game No. 32 Rogue 32 Adventurer 0 Explorer 0 Win Type - Total 1 Types 1/0/0/0/0/0/0/0/0 Lore% 25 Gallery% 33 Achievement% 32 Wizard Run 0 Options --------- Layout 0 ASCII 0 Keyboard 0 Movement Mouse Keybinds 0 Fullscreen 1 Font 18/SmallcapsGlow Map View 76x50 Zoom Use 0% Tactical HUD 1 Map Filters NONE Filters NONE Steam 1 RUN: 5210d366-1d55-4bf1-a4eb-0160a921e472